[Event "*** Titled Tuesday Blitz"]
[Site "Chess.com"]
[Date "2020.11.10"]
[Round "8"]
[White "JonahWillow"]
[Black "Tactictic"]
[Result "1-0"]
[WhiteElo "2610"]
[BlackElo "2427"]
[TimeControl "180+1"]
[EndTime "11:33:53 PST"]
[Termination "JonahWillow won by checkmate"]

1. e4 {[%clk 0:03:00.9]} 1... c5 {[%clk 0:02:57]} 2. Nf3 {[%clk 0:02:57.6]} 2...
d6 {[%clk 0:02:56.9]} 3. d4 {[%clk 0:02:58]} 3... cxd4 {[%clk 0:02:56.2]} 4.
Nxd4 {[%clk 0:02:58.9]} 4... Nf6 {[%clk 0:02:55.3]} 5. Nc3 {[%clk 0:02:59]} 5...
a6 {[%clk 0:02:55.4]} 6. g3 {[%clk 0:02:58.9]} 6... e5 {[%clk 0:02:29]} 7. Nb3
{[%clk 0:02:49.6]} 7... Be7 {[%clk 0:02:25]} 8. Bg2 {[%clk 0:02:49]} 8... b5
{[%clk 0:02:19.8]} 9. O-O {[%clk 0:02:49]} 9... Nbd7 {[%clk 0:02:17.4]} 10. Bg5
{[%clk 0:02:47.6]} 10... O-O {[%clk 0:01:53.6]} 11. Nd2 {[%clk 0:02:24.3]} 11...
Bb7 {[%clk 0:01:45.6]} 12. Re1 {[%clk 0:02:10.1]} 12... h6 {[%clk 0:01:27.4]}
13. Bxf6 {[%clk 0:01:48.9]} 13... Nxf6 {[%clk 0:01:28.3]} 14. Nf1 {[%clk
0:01:48.2]} 14... b4 {[%clk 0:01:27]} 15. Nb1 {[%clk 0:01:43.6]} 15... d5 {[%clk
0:01:18.9]} 16. exd5 {[%clk 0:01:32.3]} 16... Bxd5 {[%clk 0:01:18.4]} 17. Rxe5
{[%clk 0:01:23.4]} 17... Bxg2 {[%clk 0:01:10.2]} 18. Qxd8 {[%clk 0:01:24.3]}
18... Rfxd8 {[%clk 0:01:07.6]} 19. Kxg2 {[%clk 0:01:22.6]} 19... Bf8 {[%clk
0:00:59.9]} 20. Nbd2 {[%clk 0:01:19.1]} 20... Rac8 {[%clk 0:00:57.5]} 21. Rc1
{[%clk 0:01:18]} 21... Rc6 {[%clk 0:00:53]} 22. Nb3 {[%clk 0:01:08]} 22... Rdc8
{[%clk 0:00:45.3]} 23. Ne3 {[%clk 0:01:07.7]} 23... Bc5 {[%clk 0:00:41.7]} 24.
Nxc5 {[%clk 0:01:02.6]} 24... Rxc5 {[%clk 0:00:42.6]} 25. Rxc5 {[%clk
0:01:03.1]} 25... Rxc5 {[%clk 0:00:43]} 26. Rd1 {[%clk 0:01:04]} 26... g6 {[%clk
0:00:41.3]} 27. Rd6 {[%clk 0:01:03]} 27... Ne4 {[%clk 0:00:37.9]} 28. Rxa6
{[%clk 0:01:02.5]} 28... Kg7 {[%clk 0:00:38.2]} 29. Rb6 {[%clk 0:01:01.6]} 29...
Ra5 {[%clk 0:00:33.9]} 30. Rxb4 {[%clk 0:01:01.3]} 30... Nd6 {[%clk 0:00:32.4]}
31. a4 {[%clk 0:00:58.9]} 31... Rc5 {[%clk 0:00:32.5]} 32. Rb6 {[%clk
0:00:56.2]} 32... Nc4 {[%clk 0:00:29.8]} 33. Nxc4 {[%clk 0:00:55.8]} 33... Rxc4
{[%clk 0:00:30.7]} 34. a5 {[%clk 0:00:55.2]} 34... Rxc2 {[%clk 0:00:28.8]} 35.
a6 {[%clk 0:00:55.8]} 35... Rc1 {[%clk 0:00:25.7]} 36. b4 {[%clk 0:00:54.9]}
36... Ra1 {[%clk 0:00:25.5]} 37. b5 {[%clk 0:00:55.4]} 37... Kf8 {[%clk
0:00:26.2]} 38. Rb7 {[%clk 0:00:55.3]} 38... Ke8 {[%clk 0:00:26.2]} 39. a7
{[%clk 0:00:55.6]} 39... Kd8 {[%clk 0:00:26.8]} 40. Rb8+ {[%clk 0:00:56]} 40...
Kc7 {[%clk 0:00:27.1]} 41. a8=Q {[%clk 0:00:56.9]} 41... Rg1+ {[%clk 0:00:25.5]}
42. Kh3 {[%clk 0:00:55.1]} 42... h5 {[%clk 0:00:26.4]} 43. Rd8 {[%clk
0:00:53.1]} 43... Kb6 {[%clk 0:00:26.4]} 44. Qc6+ {[%clk 0:00:52.9]} 44... Ka5
{[%clk 0:00:27.3]} 45. b6 {[%clk 0:00:53]} 45... Kb4 {[%clk 0:00:28.2]} 46. b7
{[%clk 0:00:53.3]} 46... Ka3 {[%clk 0:00:28.1]} 47. b8=N {[%clk 0:00:53.5]}
47... g5 {[%clk 0:00:27.9]} 48. Rd3+ {[%clk 0:00:52.2]} 48... Kb4 {[%clk
0:00:27.3]} 49. Qc3+ {[%clk 0:00:50.8]} 49... Kb5 {[%clk 0:00:27.1]} 50. Nd7
{[%clk 0:00:50.5]} 50... h4 {[%clk 0:00:20.3]} 51. Rd5+ {[%clk 0:00:46]} 51...
Ka6 {[%clk 0:00:19.5]} 52. Qa3+ {[%clk 0:00:44.9]} 52... Kb7 {[%clk 0:00:18.7]}
53. Rxg5 {[%clk 0:00:45.5]} 53... Kc6 {[%clk 0:00:18.3]} 54. Kxh4 {[%clk
0:00:44.9]} 54... f6 {[%clk 0:00:17.7]} 55. Nxf6 {[%clk 0:00:44.7]} 55... Rh1
{[%clk 0:00:17.1]} 56. h3 {[%clk 0:00:43.8]} 56... Kc7 {[%clk 0:00:16.4]} 57.
Rg7+ {[%clk 0:00:43.1]} 57... Kb6 {[%clk 0:00:16.2]} 58. Qb4+ {[%clk 0:00:42.9]}
58... Kc6 {[%clk 0:00:16.2]} 59. Qc4+ {[%clk 0:00:43.3]} 59... Kd6 {[%clk
0:00:16.3]} 60. Rd7+ {[%clk 0:00:41.5]} 60... Ke5 {[%clk 0:00:16.6]} 61. Qf4+
{[%clk 0:00:41.9]} 61... Ke6 {[%clk 0:00:16.7]} 62. Rd6+ {[%clk 0:00:41.9]}
62... Kf7 {[%clk 0:00:14.1]} 63. Nd5+ {[%clk 0:00:42.2]} 63... Ke8 {[%clk
0:00:14.3]} 64. Nc7+ {[%clk 0:00:42]} 64... Ke7 {[%clk 0:00:14.4]} 65. Qf6#
{[%clk 0:00:42.5]} 1-0

[Event "*** Titled Tuesday Blitz"]
[Site "Chess.com"]
[Date "2020.11.10"]
[Round "8"]
[White "penguingm1"]
[Black "joppie2"]
[Result "0-1"]
[WhiteElo "2838"]
[BlackElo "2972"]
[TimeControl "180+1"]
[EndTime "11:33:57 PST"]
[Termination "joppie2 won on time"]

1. d4 {[%clk 0:03:00.9]} 1... Nf6 {[%clk 0:02:53.5]} 2. c4 {[%clk 0:03:00.9]}
2... e6 {[%clk 0:02:51.6]} 3. Nc3 {[%clk 0:03:01]} 3... d5 {[%clk 0:02:50.6]} 4.
cxd5 {[%clk 0:03:01.2]} 4... exd5 {[%clk 0:02:51.5]} 5. Bg5 {[%clk 0:03:01.4]}
5... c6 {[%clk 0:02:49.4]} 6. Qc2 {[%clk 0:03:00.6]} 6... g6 {[%clk 0:02:47]} 7.
f3 {[%clk 0:02:32.9]} 7... Bg7 {[%clk 0:02:44.4]} 8. e3 {[%clk 0:02:32]} 8...
O-O {[%clk 0:02:39.4]} 9. Bd3 {[%clk 0:02:28.8]} 9... Re8 {[%clk 0:02:39.3]} 10.
Qd2 {[%clk 0:01:44.5]} 10... Qe7 {[%clk 0:02:29.7]} 11. Nge2 {[%clk 0:01:17]}
11... h6 {[%clk 0:02:27.3]} 12. Bxf6 {[%clk 0:01:04.7]} 12... Qxf6 {[%clk
0:02:17.9]} 13. O-O {[%clk 0:00:52.3]} 13... Qg5 {[%clk 0:02:10.9]} 14. Nf4
{[%clk 0:00:39.6]} 14... Nd7 {[%clk 0:02:08.1]} 15. Rae1 {[%clk 0:00:38.7]}
15... Nb6 {[%clk 0:02:07.3]} 16. Qf2 {[%clk 0:00:35.1]} 16... Bd7 {[%clk
0:02:02.6]} 17. h4 {[%clk 0:00:32.5]} 17... Qd8 {[%clk 0:01:57.9]} 18. h5 {[%clk
0:00:32.8]} 18... g5 {[%clk 0:01:57.9]} 19. Nfe2 {[%clk 0:00:32.9]} 19... f5
{[%clk 0:01:54.2]} 20. e4 {[%clk 0:00:24.6]} 20... Qf6 {[%clk 0:01:36.4]} 21. e5
{[%clk 0:00:20.3]} 21... Qf7 {[%clk 0:01:36.9]} 22. f4 {[%clk 0:00:20.3]} 22...
g4 {[%clk 0:01:33.4]} 23. Qh4 {[%clk 0:00:17.7]} 23... Bf8 {[%clk 0:01:32.5]}
24. Ng3 {[%clk 0:00:17.4]} 24... Be7 {[%clk 0:01:30.9]} 25. Qh2 {[%clk
0:00:17.5]} 25... Be6 {[%clk 0:01:31.2]} 26. Nd1 {[%clk 0:00:17.7]} 26... c5
{[%clk 0:01:31.5]} 27. Ne3 {[%clk 0:00:17.5]} 27... Bf8 {[%clk 0:01:14.1]} 28.
Nexf5 {[%clk 0:00:17.4]} 28... Nc4 {[%clk 0:01:09.6]} 29. Rf2 {[%clk 0:00:16.6]}
29... cxd4 {[%clk 0:01:07.5]} 30. Nh4 {[%clk 0:00:15.9]} 30... Bb4 {[%clk
0:01:04.3]} 31. Rc1 {[%clk 0:00:13.2]} 31... Rac8 {[%clk 0:01:02.9]} 32. Ng6
{[%clk 0:00:09.9]} 32... Ne3 {[%clk 0:00:57.9]} 33. Rb1 {[%clk 0:00:08.2]} 33...
Nf5 {[%clk 0:00:54.4]} 34. Rd1 {[%clk 0:00:07.1]} 34... Ne3 {[%clk 0:00:49.7]}
35. Ra1 {[%clk 0:00:07]} 35... Bf5 {[%clk 0:00:44.4]} 36. Bxf5 {[%clk
0:00:05.6]} 36... Nxf5 {[%clk 0:00:45.3]} 37. Nh4 {[%clk 0:00:05.6]} 37... Ne3
{[%clk 0:00:41]} 38. Nf1 {[%clk 0:00:05.9]} 38... Bc5 {[%clk 0:00:39.7]} 39. Qg3
{[%clk 0:00:05.7]} 39... Qxh5 {[%clk 0:00:36.7]} 40. f5 {[%clk 0:00:05.2]} 40...
Nxf1 {[%clk 0:00:31.7]} 41. Rfxf1 {[%clk 0:00:06.1]} 41... d3+ {[%clk
0:00:32.6]} 42. Rf2 {[%clk 0:00:04.4]} 42... d2 {[%clk 0:00:31.9]} 43. Rd1
{[%clk 0:00:03.1]} 43... Bxf2+ {[%clk 0:00:29.3]} 44. Kxf2 {[%clk 0:00:04]}
44... Qg5 {[%clk 0:00:22.7]} 45. Ke2 {[%clk 0:00:03.8]} 45... Rc4 {[%clk
0:00:20.8]} 46. e6 {[%clk 0:00:03.4]} 46... Re4+ {[%clk 0:00:20.7]} 47. Kd3
{[%clk 0:00:03.1]} 47... Qf6 {[%clk 0:00:16.9]} 48. Rxd2 {[%clk 0:00:01.9]}
48... Qd4+ {[%clk 0:00:16.9]} 49. Kc2 {[%clk 0:00:02.2]} 49... Rc8+ {[%clk
0:00:17.2]} 50. Kd1 {[%clk 0:00:01.1]} 50... Qg1+ {[%clk 0:00:17.6]} 0-1

[Event "*** Titled Tuesday Blitz"]
[Site "Chess.com"]
[Date "2020.11.10"]
[Round "8"]
[White "PavelShkapenko"]
[Black "Supernotar"]
[Result "0-1"]
[WhiteElo "2663"]
[BlackElo "2855"]
[TimeControl "180+1"]
[EndTime "11:34:00 PST"]
[Termination "Supernotar won on time"]

1. e4 {[%clk 0:03:00.9]} 1... c6 {[%clk 0:02:59.3]} 2. d4 {[%clk 0:03:00.4]}
2... d5 {[%clk 0:02:57.8]} 3. e5 {[%clk 0:03:00.6]} 3... Bf5 {[%clk 0:02:56]} 4.
h4 {[%clk 0:03:00.6]} 4... h5 {[%clk 0:02:55.6]} 5. Bd3 {[%clk 0:03:00.1]} 5...
Bxd3 {[%clk 0:02:54.9]} 6. Qxd3 {[%clk 0:02:59.9]} 6... e6 {[%clk 0:02:53.3]} 7.
Bg5 {[%clk 0:02:59]} 7... Qa5+ {[%clk 0:02:52.2]} 8. Nd2 {[%clk 0:02:58.5]} 8...
Qa6 {[%clk 0:02:51.1]} 9. c4 {[%clk 0:02:58.2]} 9... Bb4 {[%clk 0:02:49.1]} 10.
b3 {[%clk 0:02:57.3]} 10... Ne7 {[%clk 0:02:48.3]} 11. Ne2 {[%clk 0:02:57.4]}
11... Nd7 {[%clk 0:02:43.1]} 12. O-O {[%clk 0:02:57.1]} 12... Nf5 {[%clk
0:02:41.1]} 13. Ng3 {[%clk 0:02:57.1]} 13... Nxg3 {[%clk 0:02:31.4]} 14. fxg3
{[%clk 0:02:56.5]} 14... O-O {[%clk 0:02:19.7]} 15. a3 {[%clk 0:01:40.3]} 15...
Bxd2 {[%clk 0:02:01.3]} 16. Bxd2 {[%clk 0:01:40]} 16... c5 {[%clk 0:01:58.3]}
17. Qf3 {[%clk 0:01:00.1]} 17... dxc4 {[%clk 0:01:55]} 18. dxc5 {[%clk
0:00:59.5]} 18... Nxe5 {[%clk 0:01:44.9]} 19. Qxh5 {[%clk 0:00:58.2]} 19... Ng6
{[%clk 0:01:39]} 20. Qe2 {[%clk 0:00:42.9]} 20... cxb3 {[%clk 0:01:36.1]} 21.
Qxa6 {[%clk 0:00:42.4]} 21... bxa6 {[%clk 0:01:36.6]} 22. Rab1 {[%clk
0:00:40.6]} 22... Rab8 {[%clk 0:01:30.3]} 23. Rfc1 {[%clk 0:00:32.6]} 23... Rfc8
{[%clk 0:01:25.8]} 24. Rc3 {[%clk 0:00:31.1]} 24... b2 {[%clk 0:01:17.7]} 25.
Rc2 {[%clk 0:00:31]} 25... Rb5 {[%clk 0:01:15.7]} 26. Rbxb2 {[%clk 0:00:27.9]}
26... Rcxc5 {[%clk 0:01:04.7]} 27. Bb4 {[%clk 0:00:24.7]} 27... Rxc2 {[%clk
0:00:58.5]} 28. Rxc2 {[%clk 0:00:24.4]} 28... Ne5 {[%clk 0:00:57.5]} 29. Rc5
{[%clk 0:00:20.4]} 29... Nd3 {[%clk 0:00:55]} 30. Rc8+ {[%clk 0:00:19.7]} 30...
Kh7 {[%clk 0:00:54.6]} 31. Rc4 {[%clk 0:00:16.4]} 31... Nxb4 {[%clk 0:00:52.3]}
32. axb4 {[%clk 0:00:16.1]} 32... a5 {[%clk 0:00:52.1]} 33. bxa5 {[%clk
0:00:14.9]} 33... Rxa5 {[%clk 0:00:53]} 34. Kf2 {[%clk 0:00:13.9]} 34... Ra2+
{[%clk 0:00:51]} 35. Kf3 {[%clk 0:00:14.2]} 35... a5 {[%clk 0:00:48.6]} 36. g4
{[%clk 0:00:14.2]} 36... a4 {[%clk 0:00:44.5]} 37. g5 {[%clk 0:00:13.5]} 37...
a3 {[%clk 0:00:43.1]} 38. Ra4 {[%clk 0:00:12.7]} 38... Ra1 {[%clk 0:00:41.5]}
39. Kg4 {[%clk 0:00:12.3]} 39... a2 {[%clk 0:00:35.8]} 40. g3 {[%clk 0:00:11.7]}
40... e5 {[%clk 0:00:33.7]} 41. h5 {[%clk 0:00:11.9]} 41... e4 {[%clk 0:00:32]}
42. Ra7 {[%clk 0:00:04.9]} 42... e3 {[%clk 0:00:29.9]} 43. Rxf7 {[%clk
0:00:04.2]} 43... e2 {[%clk 0:00:28.5]} 44. g6+ {[%clk 0:00:03.9]} 44... Kg8
{[%clk 0:00:26.3]} 45. Re7 {[%clk 0:00:03.8]} 45... e1=Q {[%clk 0:00:24.3]} 0-1

[Event "*** Titled Tuesday Blitz"]
[Site "Chess.com"]
[Date "2020.11.10"]
[Round "8"]
[White "tdf98pantani"]
[Black "BigAl"]
[Result "1-0"]
[WhiteElo "2714"]
[BlackElo "2482"]
[TimeControl "180+1"]
[EndTime "11:34:01 PST"]
[Termination "tdf98pantani won on time"]

1. d4 {[%clk 0:03:00.9]} 1... Nf6 {[%clk 0:02:59.4]} 2. c4 {[%clk 0:03:01]} 2...
g6 {[%clk 0:02:59.5]} 3. Nc3 {[%clk 0:03:01]} 3... Bg7 {[%clk 0:03:00.1]} 4. e4
{[%clk 0:03:01.2]} 4... O-O {[%clk 0:03:00.8]} 5. Be2 {[%clk 0:03:01.3]} 5... d6
{[%clk 0:03:01.3]} 6. Be3 {[%clk 0:02:59.9]} 6... c5 {[%clk 0:03:00.5]} 7. d5
{[%clk 0:02:59.3]} 7... e6 {[%clk 0:03:00.2]} 8. Nf3 {[%clk 0:02:59]} 8... exd5
{[%clk 0:03:00.2]} 9. cxd5 {[%clk 0:02:59.3]} 9... Bg4 {[%clk 0:02:58.7]} 10.
O-O {[%clk 0:02:57.9]} 10... Bxf3 {[%clk 0:02:54.9]} 11. Bxf3 {[%clk 0:02:57.9]}
11... Nbd7 {[%clk 0:02:55.6]} 12. g3 {[%clk 0:02:55.8]} 12... Re8 {[%clk
0:02:48.9]} 13. Bg2 {[%clk 0:02:55.9]} 13... a6 {[%clk 0:02:39.6]} 14. a4 {[%clk
0:02:54.6]} 14... Ne5 {[%clk 0:02:39.2]} 15. h3 {[%clk 0:02:53.3]} 15... c4
{[%clk 0:02:27.3]} 16. Qc2 {[%clk 0:02:47.7]} 16... Rc8 {[%clk 0:02:22.7]} 17.
a5 {[%clk 0:02:46.2]} 17... Nfd7 {[%clk 0:02:15.8]} 18. f4 {[%clk 0:02:38.9]}
18... Nd3 {[%clk 0:02:14.6]} 19. e5 {[%clk 0:02:36.4]} 19... N7c5 {[%clk
0:02:03]} 20. Kh2 {[%clk 0:02:29.4]} 20... dxe5 {[%clk 0:01:54.4]} 21. f5 {[%clk
0:02:29.5]} 21... e4 {[%clk 0:01:54.9]} 22. h4 {[%clk 0:01:50.9]} 22... Be5
{[%clk 0:01:37.7]} 23. Bh3 {[%clk 0:01:49.4]} 23... Qxh4 {[%clk 0:01:31.9]} 24.
Bf4 {[%clk 0:01:49]} 24... Bxf4 {[%clk 0:01:29.9]} 25. Rxf4 {[%clk 0:01:48.8]}
25... Qg5 {[%clk 0:00:51]} 26. fxg6 {[%clk 0:01:47.4]} 26... hxg6 {[%clk
0:00:45]} 27. Rg4 {[%clk 0:01:31]} 27... Qe3 {[%clk 0:00:44.9]} 28. d6 {[%clk
0:01:27.1]} 28... Qf2+ {[%clk 0:00:24.3]} 29. Qxf2 {[%clk 0:01:26.3]} 29... Nxf2
{[%clk 0:00:25.2]} 30. Rf4 {[%clk 0:01:23]} 30... Nxh3 {[%clk 0:00:25.4]} 31.
Kxh3 {[%clk 0:01:22.7]} 31... Kg7 {[%clk 0:00:26.1]} 32. Rd1 {[%clk 0:01:14.7]}
32... Rcd8 {[%clk 0:00:24.8]} 33. Rd5 {[%clk 0:01:12.9]} 33... Nd3 {[%clk
0:00:19.5]} 34. Rxe4 {[%clk 0:01:13.2]} 34... Rh8+ {[%clk 0:00:18.8]} 35. Kg2
{[%clk 0:01:13.1]} 35... Nxb2 {[%clk 0:00:18.8]} 36. Re7 {[%clk 0:01:12.5]}
36... Rh5 {[%clk 0:00:17.1]} 37. Rd4 {[%clk 0:01:06.1]} 37... Rxa5 {[%clk
0:00:15.6]} 38. d7 {[%clk 0:01:00.3]} 38... Ra3 {[%clk 0:00:10.9]} 39. Re8
{[%clk 0:00:42.4]} 39... Rxd7 {[%clk 0:00:11.1]} 40. Rxd7 {[%clk 0:00:43.1]}
40... Rxc3 {[%clk 0:00:11.7]} 41. Ree7 {[%clk 0:00:43.8]} 41... Rc2+ {[%clk
0:00:10.3]} 42. Kf3 {[%clk 0:00:41.8]} 42... Nd3 {[%clk 0:00:10]} 43. Rxf7+
{[%clk 0:00:41.4]} 43... Kh6 {[%clk 0:00:10.7]} 44. Rh7+ {[%clk 0:00:36.2]}
44... Kg5 {[%clk 0:00:11.1]} 45. Rd5+ {[%clk 0:00:36.4]} 45... Kf6 {[%clk
0:00:11.4]} 46. Rxb7 {[%clk 0:00:36.7]} 46... Ne5+ {[%clk 0:00:09.7]} 47. Ke4
{[%clk 0:00:37]} 47... Re2+ {[%clk 0:00:09.5]} 48. Kd4 {[%clk 0:00:37.1]} 48...
Rd2+ {[%clk 0:00:09.8]} 49. Kc5 {[%clk 0:00:36.5]} 49... Rxd5+ {[%clk
0:00:07.4]} 50. Kxd5 {[%clk 0:00:37.4]} 50... Nf3 {[%clk 0:00:04.1]} 51. Rb4
{[%clk 0:00:32.4]} 51... Nd2 {[%clk 0:00:01.5]} 52. Kd4 {[%clk 0:00:29.8]} 1-0

[Event "*** Titled Tuesday Blitz"]
[Site "Chess.com"]
[Date "2020.11.10"]
[Round "8"]
[White "Marianov_Podstavnikov"]
[Black "SharapovEvgeny"]
[Result "1/2-1/2"]
[WhiteElo "2264"]
[BlackElo "2465"]
[TimeControl "180+1"]
[EndTime "11:34:08 PST"]
[Termination "Game drawn by agreement"]

1. e4 {[%clk 0:03:00.9]} 1... c5 {[%clk 0:02:58.7]} 2. Nf3 {[%clk 0:02:59.4]}
2... d6 {[%clk 0:02:58.3]} 3. Bb5+ {[%clk 0:02:59]} 3... Nd7 {[%clk 0:02:57.6]}
4. d4 {[%clk 0:02:58.2]} 4... cxd4 {[%clk 0:02:57.2]} 5. Qxd4 {[%clk 0:02:56.6]}
5... e5 {[%clk 0:02:56.5]} 6. Qd3 {[%clk 0:02:51.6]} 6... h6 {[%clk 0:02:55.8]}
7. c4 {[%clk 0:02:49.7]} 7... Nf6 {[%clk 0:02:55.2]} 8. O-O {[%clk 0:02:43.8]}
8... Be7 {[%clk 0:02:54.6]} 9. Nc3 {[%clk 0:02:33.7]} 9... O-O {[%clk
0:02:53.1]} 10. Bxd7 {[%clk 0:02:15.8]} 10... Bxd7 {[%clk 0:02:52.3]} 11. b3
{[%clk 0:02:09.1]} 11... a6 {[%clk 0:02:48.6]} 12. a4 {[%clk 0:02:07.7]} 12...
Be6 {[%clk 0:02:44.9]} 13. Ba3 {[%clk 0:02:04.7]} 13... Nd7 {[%clk 0:02:42.8]}
14. Rfd1 {[%clk 0:01:53.5]} 14... Qb6 {[%clk 0:02:35.5]} 15. Rab1 {[%clk
0:01:43]} 15... Nc5 {[%clk 0:02:34.2]} 16. Qe3 {[%clk 0:01:39.8]} 16... Rfd8
{[%clk 0:01:49.3]} 17. b4 {[%clk 0:01:12.9]} 17... Nd7 {[%clk 0:01:47.3]} 18.
Qe2 {[%clk 0:01:09.5]} 18... a5 {[%clk 0:01:38.9]} 19. bxa5 {[%clk 0:01:03.8]}
19... Qxa5 {[%clk 0:01:38.1]} 20. Bb4 {[%clk 0:01:04.2]} 20... Qa6 {[%clk
0:01:36.6]} 21. Nb5 {[%clk 0:01:01.7]} 21... Qxa4 {[%clk 0:01:22.4]} 22. Nxd6
{[%clk 0:00:52.7]} 22... Bxd6 {[%clk 0:01:18.9]} 23. Rxd6 {[%clk 0:00:52.1]}
23... Qa2 {[%clk 0:01:05.7]} 24. Qxa2 {[%clk 0:00:47.8]} 24... Rxa2 {[%clk
0:01:04.3]} 25. Nxe5 {[%clk 0:00:46.1]} 25... Rda8 {[%clk 0:00:37]} 26. Nxd7
{[%clk 0:00:45.6]} 26... Ra1 {[%clk 0:00:36.5]} 27. Rbd1 {[%clk 0:00:44.3]}
27... Rxd1+ {[%clk 0:00:35.8]} 28. Rxd1 {[%clk 0:00:43.6]} 28... Bxd7 {[%clk
0:00:34.6]} 29. h3 {[%clk 0:00:43.5]} 29... Be6 {[%clk 0:00:33.6]} 30. c5 {[%clk
0:00:38.9]} 30... Ra4 {[%clk 0:00:32]} 31. Rb1 {[%clk 0:00:38.5]} 31... Bc4
{[%clk 0:00:26]} 32. Bc3 {[%clk 0:00:36]} 32... Ra3 {[%clk 0:00:24.2]} 33. Bd4
{[%clk 0:00:31.6]} 33... Rb3 {[%clk 0:00:23.6]} 34. Rc1 {[%clk 0:00:26.2]} 34...
Bd3 {[%clk 0:00:23.1]} 35. f3 {[%clk 0:00:23.6]} 35... Rb1 {[%clk 0:00:22.6]}
36. Rxb1 {[%clk 0:00:21.1]} 36... Bxb1 {[%clk 0:00:22.2]} 37. Kf2 {[%clk
0:00:21.5]} 37... f5 {[%clk 0:00:20.9]} 38. exf5 {[%clk 0:00:20.5]} 38... Bxf5
{[%clk 0:00:19.2]} 39. Ke3 {[%clk 0:00:20.9]} 39... Kf7 {[%clk 0:00:18.8]} 40.
Kf4 {[%clk 0:00:20.9]} 40... Bd7 {[%clk 0:00:18]} 41. Ke5 {[%clk 0:00:20.6]}
41... Bc6 {[%clk 0:00:17.7]} 42. Kd6 {[%clk 0:00:20.3]} 42... h5 {[%clk
0:00:16.8]} 43. h4 {[%clk 0:00:17.8]} 43... g6 {[%clk 0:00:16.6]} 44. Ke5 {[%clk
0:00:16.9]} 44... Bb5 {[%clk 0:00:16.3]} 45. Kf4 {[%clk 0:00:16.5]} 45... Bc6
{[%clk 0:00:16.1]} 46. g4 {[%clk 0:00:16]} 46... hxg4 {[%clk 0:00:15.5]} 47.
fxg4 {[%clk 0:00:16.9]} 47... Kg8 {[%clk 0:00:15.1]} 48. Kg5 {[%clk 0:00:16.8]}
48... Kh7 {[%clk 0:00:14.9]} 49. Kf6 {[%clk 0:00:17.1]} 49... Bd7 {[%clk
0:00:14.1]} 50. Kg5 {[%clk 0:00:11.7]} 50... Be6 {[%clk 0:00:13.5]} 51. Kf6
{[%clk 0:00:08.8]} 51... Bxg4 {[%clk 0:00:13.1]} 52. Kg5 {[%clk 0:00:09.1]}
52... Bh5 {[%clk 0:00:12.9]} 53. Be3 {[%clk 0:00:07.7]} 1/2-1/2

[Event "*** Titled Tuesday Blitz"]
[Site "Chess.com"]
[Date "2020.11.10"]
[Round "8"]
[White "Mambastik-Fantastic"]
[Black "Ariadna_Atreides"]
[Result "1-0"]
[WhiteElo "2288"]
[BlackElo "2100"]
[TimeControl "180+1"]
[EndTime "11:34:08 PST"]
[Termination "Mambastik-Fantastic won on time"]

1. e4 {[%clk 0:03:00.9]} 1... c5 {[%clk 0:02:59.3]} 2. Nf3 {[%clk 0:03:00.4]}
2... d6 {[%clk 0:02:59.6]} 3. d4 {[%clk 0:03:00.5]} 3... cxd4 {[%clk 0:03:00]}
4. Nxd4 {[%clk 0:03:00.7]} 4... Nf6 {[%clk 0:03:00.4]} 5. Nc3 {[%clk 0:03:00.6]}
5... Nc6 {[%clk 0:03:00.7]} 6. Be2 {[%clk 0:02:59.9]} 6... e5 {[%clk 0:02:59.8]}
7. Nf3 {[%clk 0:02:58.8]} 7... Be7 {[%clk 0:02:58.8]} 8. Bg5 {[%clk 0:02:58]}
8... O-O {[%clk 0:02:57.1]} 9. Bxf6 {[%clk 0:02:57.5]} 9... Bxf6 {[%clk
0:02:53.1]} 10. h3 {[%clk 0:02:57.9]} 10... Be7 {[%clk 0:02:44.6]} 11. O-O
{[%clk 0:02:57.8]} 11... f5 {[%clk 0:02:38.9]} 12. Bc4+ {[%clk 0:02:56.3]} 12...
Kh8 {[%clk 0:02:37.1]} 13. Re1 {[%clk 0:02:56.4]} 13... fxe4 {[%clk 0:02:27.7]}
14. Nxe4 {[%clk 0:02:55.1]} 14... Bf5 {[%clk 0:02:24.3]} 15. Ng3 {[%clk
0:02:53.6]} 15... Bg6 {[%clk 0:02:22.7]} 16. c3 {[%clk 0:02:53.4]} 16... a6
{[%clk 0:02:21]} 17. a4 {[%clk 0:02:52.8]} 17... Qc7 {[%clk 0:02:17.6]} 18. Bd3
{[%clk 0:02:38.3]} 18... Bxd3 {[%clk 0:02:11.4]} 19. Qxd3 {[%clk 0:02:37.9]}
19... Na5 {[%clk 0:02:04.6]} 20. Nf5 {[%clk 0:02:33.1]} 20... Nb3 {[%clk
0:01:49.4]} 21. Ra3 {[%clk 0:02:16.9]} 21... Nc5 {[%clk 0:01:48.6]} 22. Qc2
{[%clk 0:02:09.8]} 22... e4 {[%clk 0:01:45]} 23. N3d4 {[%clk 0:02:05.4]} 23...
g6 {[%clk 0:01:22.9]} 24. Ne3 {[%clk 0:01:49.4]} 24... Bh4 {[%clk 0:01:06.4]}
25. Re2 {[%clk 0:01:46.7]} 25... Qf7 {[%clk 0:01:02.6]} 26. g3 {[%clk
0:01:39.2]} 26... Bg5 {[%clk 0:00:59.9]} 27. b4 {[%clk 0:01:29.2]} 27... Nd3
{[%clk 0:00:58.3]} 28. Ng4 {[%clk 0:01:23.4]} 28... h5 {[%clk 0:00:50.6]} 29.
Nh2 {[%clk 0:01:21.9]} 29... Rae8 {[%clk 0:00:21.5]} 30. Nf1 {[%clk 0:01:18]}
30... h4 {[%clk 0:00:15.2]} 31. c4 {[%clk 0:01:08.5]} 31... hxg3 {[%clk
0:00:13.8]} 32. Nxg3 {[%clk 0:01:05.7]} 32... Nf4 {[%clk 0:00:12.6]} 33. Rxe4
{[%clk 0:00:52]} 33... Nxh3+ {[%clk 0:00:12.2]} 34. Kg2 {[%clk 0:00:51]} 34...
Rxe4 {[%clk 0:00:08.2]} 35. Nxe4 {[%clk 0:00:48.8]} 35... Nf4+ {[%clk
0:00:06.4]} 36. Kf1 {[%clk 0:00:45.5]} 36... Bh4 {[%clk 0:00:05.8]} 37. Qc3
{[%clk 0:00:40.8]} 37... Kh7 {[%clk 0:00:04.4]} 38. Nf3 {[%clk 0:00:35.1]} 38...
Qe7 {[%clk 0:00:04]} 39. Qd4 {[%clk 0:00:26.3]} 39... Re8 {[%clk 0:00:03.8]} 40.
Re3 {[%clk 0:00:24.6]} 40... Ne6 {[%clk 0:00:02.8]} 41. Qxd6 {[%clk 0:00:18.9]}
41... g5 {[%clk 0:00:03.7]} 42. Nxh4 {[%clk 0:00:13.7]} 42... gxh4 {[%clk
0:00:03.3]} 43. Qe5 {[%clk 0:00:12.7]} 43... Qg7 {[%clk 0:00:02.8]} 44. Nf6+
{[%clk 0:00:12.1]} 44... Kh6 {[%clk 0:00:02.2]} 45. Nxe8 {[%clk 0:00:09.3]}
45... Qd7 {[%clk 0:00:02.1]} 46. Nf6 {[%clk 0:00:07.9]} 46... Qd1+ {[%clk
0:00:01.2]} 47. Kg2 {[%clk 0:00:07.9]} 1-0